[Event "2026 European Womens Championship"]
[Site "Batumi, GE"]
[Date "2026.06.03"]
[Round "9"]
[White "Arabidze, Meri"]
[Black "Kulon, Klaudia"]
[Result "0-1"]
[Board "5"]
[TimeControl "5400+30"]
[WhiteFideId "13604040"]
[BlackFideId "1131044"]
[WhiteElo "2409"]
[BlackElo "2377"]
[WhiteTitle "IM"]
[BlackTitle "IM"]
[WhiteClock "0:09:23"]
[BlackClock "0:14:38"]
[Variant "Standard"]

1. c4 {[%clk 1:30:57]}  c5 {[%clk 1:30:40]} 2. Nc3 {[%clk 1:31:09]}  Nf6 {[%clk 1:30:53]} 3. Nf3 {[%clk 1:31:23]}  d5 {[%clk 1:30:21]}
4. cxd5 {[%clk 1:31:34]}  Nxd5 {[%clk 1:30:46]} 5. g3 {[%clk 1:31:51]}  Nc6 {[%clk 1:30:50]} 6. Bg2 {[%clk 1:32:16]}  g6 {[%clk 1:27:54]}
7. h4 {[%clk 1:32:34]}  Nf6 {[%clk 1:21:56]} 8. d3 {[%clk 1:28:40]}  Bg7 {[%clk 1:18:19]} 9. Bd2 {[%clk 1:09:40]}  Bd7 {[%clk 1:16:19]}
10. Ng5 {[%clk 1:09:25]}  h6 {[%clk 1:11:18]} 11. Nge4 {[%clk 1:08:20]}  Nxe4 {[%clk 1:10:23]} 12. Nxe4 {[%clk 1:07:41]}  b6 {[%clk 1:09:40]}
13. Bc3 {[%clk 1:06:43]}  O-O {[%clk 1:06:32]} 14. a3 {[%clk 0:59:52]}  e5 {[%clk 0:57:29]} 15. b4 {[%clk 0:59:04]}  cxb4 {[%clk 0:56:11]}
16. axb4 {[%clk 0:59:29]}  Qe7 {[%clk 0:52:45]} 17. Qb1 {[%clk 0:53:21]}  a5 {[%clk 0:48:30]} 18. bxa5 {[%clk 0:47:59]}  bxa5 {[%clk 0:48:50]}
19. O-O {[%clk 0:44:06]}  a4 {[%clk 0:46:53]} 20. Nd2 {[%clk 0:37:32]}  Rab8 {[%clk 0:44:52]} 21. Qd1 {[%clk 0:34:16]}  Nd4 {[%clk 0:43:44]}
22. Ra2 {[%clk 0:34:07]}  Rfc8 {[%clk 0:41:56]} 23. Nc4 {[%clk 0:23:20]}  Bb5 {[%clk 0:39:27]} 24. Bb2 {[%clk 0:15:41]}  Qe6 {[%clk 0:33:15]}
25. Bxd4 {[%clk 0:10:52]}  exd4 {[%clk 0:33:31]} 26. Bf3 {[%clk 0:11:15]}  g5 {[%clk 0:24:33]} 27. hxg5 {[%clk 0:07:54]}  hxg5 {[%clk 0:25:01]}
28. Re1 {[%clk 0:08:01]}  g4 {[%clk 0:24:45]} 29. Bg2 {[%clk 0:08:27]}  Bf8 {[%clk 0:21:37]} 30. e3 {[%clk 0:07:39]}  Bxc4 {[%clk 0:13:03]}
31. dxc4 {[%clk 0:07:48]}  Rxc4 {[%clk 0:12:53]} 32. exd4 {[%clk 0:03:56]}  Rxd4 {[%clk 0:13:03]} 33. Qa1 {[%clk 0:01:59]}  Qc4 {[%clk 0:11:35]}
34. Bf1 {[%clk 0:01:38]}  Qb4 {[%clk 0:11:37]} 35. Re5 {[%clk 0:01:30]}  Bg7 {[%clk 0:11:09]} 36. Rg5 {[%clk 0:01:53]}  Re8 {[%clk 0:09:56]}
37. Qc1 {[%clk 0:00:35]}  Re1 {[%clk 0:09:04]} 38. Qc8+ {[%clk 0:00:50]}  Qf8 {[%clk 0:09:08]} 39. Qxf8+ {[%clk 0:00:34]}  Kxf8 {[%clk 0:09:37]}
40. Re2 {[%clk 0:00:35]}  Rc1 {[%clk 0:07:50]} 41. Kg2 {[%clk 0:26:09]}  Bf6 {[%clk 0:24:33]} 42. Ra5 {[%clk 0:25:56]}  Rdd1 {[%clk 0:15:28]}
43. Rxa4 {[%clk 0:25:51]}  Bd4 {[%clk 0:12:32]} 44. Re4 {[%clk 0:08:06]}  f5 {[%clk 0:12:32]} 45. Raxd4 {[%clk 0:08:19]}  Rxf1 {[%clk 0:11:38]}
46. Rxg4 {[%clk 0:08:29]}  fxg4 {[%clk 0:12:01]} 47. Rxg4 {[%clk 0:08:42]}  Rg1+ {[%clk 0:12:28]} 48. Kh2 {[%clk 0:08:37]}  Rh1+ {[%clk 0:12:45]}
49. Kg2 {[%clk 0:09:06]}  Rcg1+ {[%clk 0:13:08]} 50. Kf3 {[%clk 0:09:33]}  Rh7 {[%clk 0:13:30]} 51. Ra4 {[%clk 0:08:33]}  Rf7+ {[%clk 0:13:55]}
52. Ke3 {[%clk 0:08:55]}  Re1+ {[%clk 0:14:16]} 53. Kd2 {[%clk 0:09:23]}  Rf1 {[%clk 0:14:38]} 0-1

[Event "2026 European Womens Championship"]
[Site "Batumi, GE"]
[Date "2026.06.03"]
[Round "9"]
[White "Unuk, Laura"]
[Black "Salimova, Nurgyul"]
[Result "0-1"]
[Board "6"]
[TimeControl "5400+30"]
[WhiteFideId "14609215"]
[BlackFideId "2915138"]
[WhiteElo "2289"]
[BlackElo "2404"]
[WhiteTitle "IM"]
[BlackTitle "IM"]
[WhiteClock "0:02:07"]
[BlackClock "0:11:51"]
[Variant "Standard"]

1. d4 {[%clk 1:30:50]}  Nf6 {[%clk 1:30:33]} 2. Bf4 {[%clk 1:31:05]}  d6 {[%clk 1:30:17]} 3. e3 {[%clk 1:28:31]}  Nbd7 {[%clk 1:30:01]}
4. h3 {[%clk 1:20:47]}  c5 {[%clk 1:13:19]} 5. Nf3 {[%clk 0:56:38]}  g6 {[%clk 1:12:59]} 6. Nc3 {[%clk 0:54:44]}  Bg7 {[%clk 1:11:37]}
7. Be2 {[%clk 0:55:09]}  a6 {[%clk 1:05:19]} 8. a4 {[%clk 0:54:34]}  O-O {[%clk 0:55:12]} 9. O-O {[%clk 0:54:38]}  Rb8 {[%clk 0:52:45]}
10. Re1 {[%clk 0:44:41]}  b6 {[%clk 0:51:04]} 11. Bc4 {[%clk 0:40:58]}  Bb7 {[%clk 0:48:19]} 12. Bh2 {[%clk 0:24:49]}  Ne8 {[%clk 0:39:23]}
13. Qe2 {[%clk 0:21:19]}  Nc7 {[%clk 0:36:36]} 14. Rad1 {[%clk 0:20:45]}  b5 {[%clk 0:28:54]} 15. axb5 {[%clk 0:20:58]}  axb5 {[%clk 0:29:18]}
16. Nxb5 {[%clk 0:18:50]}  Bxf3 {[%clk 0:24:07]} 17. gxf3 {[%clk 0:19:16]}  Qc8 {[%clk 0:16:16]} 18. c3 {[%clk 0:11:51]}  Na8 {[%clk 0:12:22]}
19. Kg2 {[%clk 0:06:08]}  Nab6 {[%clk 0:11:39]} 20. Bb3 {[%clk 0:04:39]}  c4 {[%clk 0:10:50]} 21. Bc2 {[%clk 0:05:04]}  Nd5 {[%clk 0:10:09]}
22. e4 {[%clk 0:02:04]}  Rxb5 {[%clk 0:07:50]} 23. exd5 {[%clk 0:02:32]}  Rxb2 {[%clk 0:07:21]} 24. Rb1 {[%clk 0:02:32]}  Rxb1 {[%clk 0:07:24]}
25. Rxb1 {[%clk 0:02:41]}  Nf6 {[%clk 0:07:16]} 26. Be4 {[%clk 0:02:09]}  e6 {[%clk 0:05:55]} 27. Bxd6 {[%clk 0:01:43]}  exd5 {[%clk 0:06:01]}
28. Rb8 {[%clk 0:01:01]}  Qe6 {[%clk 0:04:13]} 29. Bxf8 {[%clk 0:00:52]}  Bxf8 {[%clk 0:04:38]} 30. Bd3 {[%clk 0:00:34]}  cxd3 {[%clk 0:04:54]}
31. Qxd3 {[%clk 0:00:32]}  Nh5 {[%clk 0:02:39]} 32. Qe3 {[%clk 0:00:57]}  Qf5 {[%clk 0:02:08]} 33. Qe7 {[%clk 0:00:32]}  Nf4+ {[%clk 0:02:33]}
34. Kg1 {[%clk 0:00:55]}  Ne6 {[%clk 0:02:20]} 35. Qd6 {[%clk 0:00:36]}  Qxf3 {[%clk 0:01:39]} 36. Qg3 {[%clk 0:00:50]}  Qf5 {[%clk 0:01:39]}
37. Qg4 {[%clk 0:00:35]}  Qd3 {[%clk 0:01:09]} 38. Qg3 {[%clk 0:00:58]}  Qe4 {[%clk 0:01:23]} 39. Qe3 {[%clk 0:00:33]}  Qf5 {[%clk 0:01:45]}
40. Qg3 {[%clk 0:00:33]}  Nf4 {[%clk 0:01:29]} 41. Kh2 {[%clk 0:29:35]}  h5 {[%clk 0:23:30]} 42. Re8 {[%clk 0:26:59]}  Ne6 {[%clk 0:23:15]}
43. Kg1 {[%clk 0:24:22]}  Kg7 {[%clk 0:23:06]} 44. Kh2 {[%clk 0:22:05]}  h4 {[%clk 0:20:00]} 45. Qxh4 {[%clk 0:12:33]}  Bd6+ {[%clk 0:19:58]}
46. Kg2 {[%clk 0:11:22]}  Nf4+ {[%clk 0:19:36]} 47. Kh1 {[%clk 0:05:16]}  Qb1+ {[%clk 0:16:43]} 48. Kh2 {[%clk 0:05:40]}  Nxh3+ {[%clk 0:11:47]}
49. f4 {[%clk 0:03:47]}  Bxf4+ {[%clk 0:11:43]} 50. Kxh3 {[%clk 0:02:07]}  Qf1+ {[%clk 0:11:51]} 0-1

[Event "2026 European Womens Championship"]
[Site "Batumi, GE"]
[Date "2026.06.03"]
[Round "9"]
[White "Khotenashvili, Bella"]
[Black "Bulmaga, Irina"]
[Result "1-0"]
[Board "7"]
[TimeControl "5400+30"]
[WhiteFideId "13602640"]
[BlackFideId "13903063"]
[WhiteElo "2415"]
[BlackElo "2361"]
[WhiteTitle "GM"]
[BlackTitle "IM"]
[WhiteClock "0:03:48"]
[BlackClock "0:00:41"]
[Variant "Standard"]

1. g3 {[%clk 1:30:56]}  e5 {[%clk 1:28:48]} 2. c4 {[%clk 1:31:07]}  Nf6 {[%clk 1:28:35]} 3. Bg2 {[%clk 1:31:15]}  c6 {[%clk 1:28:47]}
4. d4 {[%clk 1:31:16]}  e4 {[%clk 1:29:10]} 5. a3 {[%clk 1:31:04]}  d5 {[%clk 1:29:18]} 6. Bg5 {[%clk 1:29:29]}  Be7 {[%clk 1:19:19]}
7. Nc3 {[%clk 1:29:09]}  Nbd7 {[%clk 1:07:35]} 8. f3 {[%clk 1:28:24]}  exf3 {[%clk 1:03:16]} 9. Nxf3 {[%clk 1:28:44]}  h6 {[%clk 0:58:34]}
10. Bf4 {[%clk 1:28:35]}  g5 {[%clk 0:43:43]} 11. Bd2 {[%clk 1:15:10]}  Nb6 {[%clk 0:33:54]} 12. cxd5 {[%clk 1:09:18]}  cxd5 {[%clk 0:31:44]}
13. O-O {[%clk 1:03:15]}  Nc4 {[%clk 0:28:36]} 14. Ne5 {[%clk 0:54:49]}  Nxd2 {[%clk 0:08:39]} 15. Qxd2 {[%clk 0:54:48]}  Be6 {[%clk 0:09:08]}
16. Rf2 {[%clk 0:34:01]}  O-O {[%clk 0:07:27]} 17. Raf1 {[%clk 0:33:18]}  Kg7 {[%clk 0:07:02]} 18. Qd3 {[%clk 0:25:30]}  Qd6 {[%clk 0:05:41]}
19. h4 {[%clk 0:18:21]}  Rad8 {[%clk 0:04:14]} 20. hxg5 {[%clk 0:17:32]}  hxg5 {[%clk 0:04:42]} 21. Qe3 {[%clk 0:17:35]}  Ne4 {[%clk 0:03:48]}
22. Nb5 {[%clk 0:01:29]}  Qb6 {[%clk 0:04:16]} 23. Bxe4 {[%clk 0:01:33]}  dxe4 {[%clk 0:03:32]} 24. Qxe4 {[%clk 0:01:28]}  f5 {[%clk 0:03:34]}
25. Qe3 {[%clk 0:01:17]}  Qxb5 {[%clk 0:03:41]} 26. Ng6 {[%clk 0:01:26]}  Qd7 {[%clk 0:02:06]} 27. Nxe7 {[%clk 0:01:42]}  Qxe7 {[%clk 0:02:12]}
28. Rxf5 {[%clk 0:02:08]}  Rxf5 {[%clk 0:00:48]} 29. Rxf5 {[%clk 0:02:36]}  Kg6 {[%clk 0:00:42]} 30. Re5 {[%clk 0:01:55]}  Rd6 {[%clk 0:00:45]}
31. d5 {[%clk 0:03:08]}  Qd8 {[%clk 0:00:37]} 32. Rxe6+ {[%clk 0:03:22]}  Rxe6 {[%clk 0:00:44]} 33. Qxe6+ {[%clk 0:03:46]}  Kg7 {[%clk 0:00:34]}
34. Qe5+ {[%clk 0:03:35]}  Kg6 {[%clk 0:00:52]} 35. Kg2 {[%clk 0:03:48]}  Qa5 {[%clk 0:01:00]} 36. Qe4+ {[%clk 0:03:47]}  Kh6 {[%clk 0:00:41]}
37. d6 {[%clk 0:03:48]} 1-0

[Event "2026 European Womens Championship"]
[Site "Batumi, GE"]
[Date "2026.06.03"]
[Round "9"]
[White "Nomin-Erdene, Davaademberel"]
[Black "Wagner, Dinara"]
[Result "1/2-1/2"]
[Board "8"]
[TimeControl "5400+30"]
[WhiteFideId "4900782"]
[BlackFideId "24157570"]
[WhiteElo "2328"]
[BlackElo "2408"]
[WhiteTitle "IM"]
[BlackTitle "IM"]
[WhiteClock "0:32:41"]
[BlackClock "0:04:14"]
[Variant "Standard"]

1. e4 {[%clk 1:30:54]}  c5 {[%clk 1:30:50]} 2. Nf3 {[%clk 1:31:11]}  Nc6 {[%clk 1:31:11]} 3. d4 {[%clk 1:31:35]}  cxd4 {[%clk 1:31:38]}
4. Nxd4 {[%clk 1:32:00]}  Nf6 {[%clk 1:32:05]} 5. Nc3 {[%clk 1:32:09]}  e5 {[%clk 1:31:59]} 6. Ndb5 {[%clk 1:32:29]}  d6 {[%clk 1:32:22]}
7. Bg5 {[%clk 1:32:22]}  a6 {[%clk 1:32:43]} 8. Na3 {[%clk 1:32:48]}  b5 {[%clk 1:33:08]} 9. Nab1 {[%clk 1:32:39]}  Be7 {[%clk 1:33:12]}
10. Bxf6 {[%clk 1:33:01]}  Bxf6 {[%clk 1:33:38]} 11. a4 {[%clk 1:33:23]}  b4 {[%clk 1:33:46]} 12. Nd5 {[%clk 1:33:47]}  O-O {[%clk 1:27:21]}
13. Bc4 {[%clk 1:33:41]}  Bg5 {[%clk 1:26:40]} 14. O-O {[%clk 1:34:02]}  Be6 {[%clk 1:25:37]} 15. Qd3 {[%clk 1:34:20]}  a5 {[%clk 1:25:48]}
16. Rd1 {[%clk 1:34:35]}  Rb8 {[%clk 0:58:44]} 17. c3 {[%clk 1:31:59]}  bxc3 {[%clk 0:34:19]} 18. bxc3 {[%clk 1:30:56]}  Rb2 {[%clk 0:32:21]}
19. Na3 {[%clk 1:11:34]}  Nb8 {[%clk 0:05:44]} 20. Ra2 {[%clk 0:54:47]}  Rxa2 {[%clk 0:05:40]} 21. Bxa2 {[%clk 0:55:12]}  Nd7 {[%clk 0:05:53]}
22. Nc4 {[%clk 0:54:01]}  Nc5 {[%clk 0:04:59]} 23. Qc2 {[%clk 0:54:14]}  Kh8 {[%clk 0:04:14]} 24. Nde3 {[%clk 0:54:22]}  Bxe3 {[%clk 0:04:23]}
25. Nxe3 {[%clk 0:52:13]}  Bxa2 {[%clk 0:04:50]} 26. Qxa2 {[%clk 0:52:37]}  Nxe4 {[%clk 0:04:58]} 27. Qc2 {[%clk 0:51:58]}  Nc5 {[%clk 0:04:04]}
28. Nc4 {[%clk 0:51:49]}  Qd7 {[%clk 0:03:29]} 29. Nxd6 {[%clk 0:38:09]}  Qxa4 {[%clk 0:03:57]} 30. Qxa4 {[%clk 0:36:01]}  Nxa4 {[%clk 0:04:22]}
31. c4 {[%clk 0:34:38]}  Nc3 {[%clk 0:03:50]} 32. Rd3 {[%clk 0:33:14]}  Ne2+ {[%clk 0:03:48]} 33. Kf1 {[%clk 0:33:40]}  Nd4 {[%clk 0:04:14]}
34. Ra3 {[%clk 0:32:41]} 1/2-1/2

[Event "2026 European Womens Championship"]
[Site "Batumi, GE"]
[Date "2026.06.03"]
[Round "9"]
[White "Kazarian, Anna-Maja"]
[Black "Danielian, Elina"]
[Result "0-1"]
[Board "9"]
[TimeControl "5400+30"]
[WhiteFideId "1033689"]
[BlackFideId "13300210"]
[WhiteElo "2317"]
[BlackElo "2390"]
[WhiteTitle "FM"]
[BlackTitle "GM"]
[WhiteClock "0:00:33"]
[BlackClock "0:00:59"]
[Variant "Standard"]

1. e4 {[%clk 1:30:58]}  d6 {[%clk 1:30:49]} 2. d4 {[%clk 1:31:22]}  Nf6 {[%clk 1:31:15]} 3. Nc3 {[%clk 1:31:49]}  c6 {[%clk 1:31:39]}
4. a4 {[%clk 1:32:00]}  g6 {[%clk 1:30:59]} 5. h3 {[%clk 1:32:12]}  Bg7 {[%clk 1:31:12]} 6. g4 {[%clk 1:32:22]}  h5 {[%clk 1:20:43]}
7. g5 {[%clk 1:31:40]}  Nh7 {[%clk 1:19:56]} 8. Be3 {[%clk 1:25:37]}  Nd7 {[%clk 1:18:52]} 9. f4 {[%clk 1:19:40]}  e5 {[%clk 1:13:31]}
10. Nf3 {[%clk 1:12:44]}  exf4 {[%clk 1:06:56]} 11. Bxf4 {[%clk 1:12:58]}  Qe7 {[%clk 1:07:13]} 12. Qd2 {[%clk 1:08:00]}  O-O {[%clk 1:04:56]}
13. O-O-O {[%clk 1:02:33]}  Rd8 {[%clk 1:04:08]} 14. Bd3 {[%clk 0:50:38]}  a6 {[%clk 1:01:47]} 15. Qh2 {[%clk 0:44:13]}  Ndf8 {[%clk 1:00:59]}
16. d5 {[%clk 0:44:17]}  b5 {[%clk 0:48:26]} 17. e5 {[%clk 0:28:31]}  dxe5 {[%clk 0:43:17]} 18. Nxe5 {[%clk 0:28:52]}  Bxe5 {[%clk 0:38:14]}
19. Bxe5 {[%clk 0:29:17]}  cxd5 {[%clk 0:38:42]} 20. Rhf1 {[%clk 0:20:26]}  Bxh3 {[%clk 0:22:55]} 21. Rf6 {[%clk 0:18:12]}  b4 {[%clk 0:15:33]}
22. Ne2 {[%clk 0:15:47]}  Re8 {[%clk 0:15:52]} 23. Bd4 {[%clk 0:15:43]}  Bg4 {[%clk 0:15:55]} 24. Re1 {[%clk 0:09:59]}  Rac8 {[%clk 0:14:24]}
25. Rxa6 {[%clk 0:03:57]}  Qxg5+ {[%clk 0:09:19]} 26. Kb1 {[%clk 0:04:22]}  Ne6 {[%clk 0:02:32]} 27. Rxe6 {[%clk 0:04:17]}  Rxe6 {[%clk 0:02:53]}
28. Qf2 {[%clk 0:02:48]}  b3 {[%clk 0:02:53]} 29. Rf1 {[%clk 0:02:14]}  Bf5 {[%clk 0:00:36]} 30. Rg1 {[%clk 0:00:33]}  bxc2+ {[%clk 0:00:55]}
31. Ka2 {[%clk 0:00:43]}  Rxe2 {[%clk 0:00:56]} 32. Qxe2 {[%clk 0:00:37]}  Bxd3 {[%clk 0:00:54]} 33. Qxd3 {[%clk 0:00:33]}  Qxg1 {[%clk 0:00:59]} 0-1

[Event "2026 European Womens Championship"]
[Site "Batumi, GE"]
[Date "2026.06.03"]
[Round "9"]
[White "Zherebtsova, Alexandra"]
[Black "Mkrtchyan, Mariam"]
[Result "1/2-1/2"]
[Board "10"]
[TimeControl "5400+30"]
[WhiteFideId "24129518"]
[BlackFideId "13310828"]
[WhiteElo "2242"]
[BlackElo "2365"]
[WhiteTitle "FM"]
[BlackTitle "WGM"]
[WhiteClock "0:05:25"]
[BlackClock "0:03:44"]
[Variant "Standard"]

1. d4 {[%clk 1:30:57]}  d5 {[%clk 1:29:56]} 2. c4 {[%clk 1:31:07]}  e6 {[%clk 1:30:15]} 3. Nc3 {[%clk 1:31:19]}  c6 {[%clk 1:30:36]}
4. e4 {[%clk 1:30:35]}  dxe4 {[%clk 1:30:59]} 5. Nxe4 {[%clk 1:30:54]}  Bb4+ {[%clk 1:31:22]} 6. Bd2 {[%clk 1:30:10]}  Qxd4 {[%clk 1:31:43]}
7. Bxb4 {[%clk 1:30:23]}  Qxe4+ {[%clk 1:32:08]} 8. Be2 {[%clk 1:30:12]}  Na6 {[%clk 1:32:05]} 9. Bd6 {[%clk 1:29:32]}  e5 {[%clk 1:31:48]}
10. Qd2 {[%clk 1:07:17]}  Be6 {[%clk 1:29:41]} 11. Qg5 {[%clk 1:01:25]}  Qg6 {[%clk 1:30:01]} 12. Qxe5 {[%clk 0:38:33]}  Qxg2 {[%clk 1:21:58]}
13. O-O-O {[%clk 0:38:23]}  O-O-O {[%clk 1:18:46]} 14. Nf3 {[%clk 0:32:43]}  Nf6 {[%clk 1:16:47]} 15. Rhg1 {[%clk 0:20:36]}  Qxf2 {[%clk 1:11:36]}
16. Nd4 {[%clk 0:17:20]}  Rhe8 {[%clk 0:57:17]} 17. Rgf1 {[%clk 0:14:59]}  Qh4 {[%clk 0:55:27]} 18. Nxc6 {[%clk 0:12:19]}  bxc6 {[%clk 0:54:38]}
19. Qa5 {[%clk 0:12:30]}  Kb7 {[%clk 0:52:47]} 20. c5 {[%clk 0:07:06]}  Qg5+ {[%clk 0:42:09]} 21. Rd2 {[%clk 0:05:22]}  Nxc5 {[%clk 0:40:21]}
22. Qc7+ {[%clk 0:04:35]}  Ka8 {[%clk 0:40:47]} 23. Bf4 {[%clk 0:01:22]}  Nb3+ {[%clk 0:38:08]} 24. axb3 {[%clk 0:01:42]}  Qc5+ {[%clk 0:38:20]}
25. Rc2 {[%clk 0:01:24]}  Qb6 {[%clk 0:38:20]} 26. Rxc6 {[%clk 0:01:14]}  Qxc7 {[%clk 0:37:33]} 27. Rxc7 {[%clk 0:01:38]}  Rc8 {[%clk 0:34:23]}
28. Bb5 {[%clk 0:01:32]}  Bd7 {[%clk 0:30:50]} 29. Bc4 {[%clk 0:01:30]}  Rxc7 {[%clk 0:28:54]} 30. Bxc7 {[%clk 0:01:54]}  Kb7 {[%clk 0:29:10]}
31. Bg3 {[%clk 0:02:01]}  Be6 {[%clk 0:29:03]} 32. Bh4 {[%clk 0:02:03]}  Nd5 {[%clk 0:28:04]} 33. Re1 {[%clk 0:01:01]}  Nc7 {[%clk 0:25:41]}
34. Kd2 {[%clk 0:00:37]}  h6 {[%clk 0:20:17]} 35. Rf1 {[%clk 0:00:37]}  f6 {[%clk 0:17:50]} 36. Bg3 {[%clk 0:00:41]}  Rd8+ {[%clk 0:17:10]}
37. Kc2 {[%clk 0:00:43]}  Bd5 {[%clk 0:15:30]} 38. Rg1 {[%clk 0:00:51]}  Be4+ {[%clk 0:13:34]} 39. Kc3 {[%clk 0:00:59]}  g5 {[%clk 0:13:13]}
40. h4 {[%clk 0:00:51]}  Nd5+ {[%clk 0:10:42]} 41. Kd4 {[%clk 0:01:12]}  f5 {[%clk 0:11:05]} 42. hxg5 {[%clk 0:01:28]}  hxg5 {[%clk 0:11:28]}
43. Ke5 {[%clk 0:26:42]}  Re8+ {[%clk 0:38:42]} 44. Kd6 {[%clk 0:25:51]}  Nb6 {[%clk 0:34:52]} 45. Be6 {[%clk 0:23:58]}  g4 {[%clk 0:28:24]}
46. Rc1 {[%clk 0:21:04]}  Rd8+ {[%clk 0:25:59]} 47. Ke5 {[%clk 0:20:17]}  Nd7+ {[%clk 0:18:00]} 48. Kf4 {[%clk 0:18:17]}  Nf6 {[%clk 0:17:55]}
49. Bxf5 {[%clk 0:11:44]}  Nh5+ {[%clk 0:16:40]} 50. Kxe4 {[%clk 0:08:30]}  Nxg3+ {[%clk 0:17:03]} 51. Ke5 {[%clk 0:08:56]}  Re8+ {[%clk 0:05:00]}
52. Be6 {[%clk 0:09:21]}  Nh5 {[%clk 0:05:25]} 53. Kd6 {[%clk 0:07:19]}  Rd8+ {[%clk 0:05:13]} 54. Ke7 {[%clk 0:06:18]}  Rd4 {[%clk 0:05:34]}
55. Rg1 {[%clk 0:05:58]}  g3 {[%clk 0:05:50]} 56. Bf7 {[%clk 0:05:24]}  Rh4 {[%clk 0:03:18]} 57. Bxh5 {[%clk 0:04:58]}  Rxh5 {[%clk 0:03:44]}
58. Rxg3 {[%clk 0:05:25]} 1/2-1/2

[Event "2026 European Womens Championship"]
[Site "Batumi, GE"]
[Date "2026.06.03"]
[Round "9"]
[White "Zimina, Olga"]
[Black "Javakhishvili, Lela"]
[Result "1-0"]
[Board "11"]
[TimeControl "5400+30"]
[WhiteFideId "4132190"]
[BlackFideId "13601458"]
[WhiteElo "2290"]
[BlackElo "2442"]
[WhiteTitle "IM"]
[BlackTitle "IM"]
[WhiteClock "0:24:32"]
[BlackClock "0:33:33"]
[Variant "Standard"]

1. d4 {[%clk 1:30:54]}  Nf6 {[%clk 1:30:45]} 2. g3 {[%clk 1:31:13]}  d5 {[%clk 1:28:41]} 3. Nf3 {[%clk 1:31:31]}  e6 {[%clk 1:28:39]}
4. Bg2 {[%clk 1:31:53]}  Be7 {[%clk 1:29:03]} 5. c4 {[%clk 1:32:17]}  O-O {[%clk 1:29:23]} 6. Nc3 {[%clk 1:32:43]}  c6 {[%clk 1:23:06]}
7. O-O {[%clk 1:32:20]}  a5 {[%clk 1:23:13]} 8. b3 {[%clk 1:32:43]}  b6 {[%clk 1:21:16]} 9. Bb2 {[%clk 1:33:01]}  Ba6 {[%clk 1:21:30]}
10. Nd2 {[%clk 1:33:23]}  b5 {[%clk 1:20:06]} 11. c5 {[%clk 1:33:42]}  b4 {[%clk 1:20:32]} 12. Na4 {[%clk 1:34:08]}  Nbd7 {[%clk 1:20:56]}
13. Re1 {[%clk 1:34:28]}  Bb5 {[%clk 1:21:11]} 14. e4 {[%clk 1:34:48]}  dxe4 {[%clk 1:21:27]} 15. Nxe4 {[%clk 1:34:50]}  Nxe4 {[%clk 1:15:21]}
16. Bxe4 {[%clk 1:35:01]}  Nf6 {[%clk 1:15:47]} 17. Nb6 {[%clk 1:35:07]}  Rb8 {[%clk 1:02:13]} 18. Qc2 {[%clk 1:16:35]}  Nxe4 {[%clk 0:59:56]}
19. Qxe4 {[%clk 1:15:03]}  Bf6 {[%clk 0:48:53]} 20. a4 {[%clk 0:33:36]}  bxa3 {[%clk 0:48:47]} 21. Rxa3 {[%clk 0:30:02]}  Qc7 {[%clk 0:48:04]}
22. Rxa5 {[%clk 0:27:34]}  Rfd8 {[%clk 0:48:09]} 23. Rea1 {[%clk 0:27:20]}  g6 {[%clk 0:46:02]} 24. Ra7 {[%clk 0:24:55]}  Rb7 {[%clk 0:46:26]}
25. Ra8 {[%clk 0:25:08]}  Kg7 {[%clk 0:40:52]} 26. R8a3 {[%clk 0:22:19]}  h5 {[%clk 0:37:30]} 27. h4 {[%clk 0:21:38]}  Rbb8 {[%clk 0:34:36]}
28. Kg2 {[%clk 0:20:15]}  Rb7 {[%clk 0:32:48]} 29. Qe3 {[%clk 0:19:37]}  Rxb6 {[%clk 0:31:07]} 30. cxb6 {[%clk 0:19:39]}  Qxb6 {[%clk 0:31:35]}
31. Qf3 {[%clk 0:09:10]}  Rd7 {[%clk 0:27:55]} 32. Rd1 {[%clk 0:08:32]}  Qd8 {[%clk 0:27:03]} 33. Raa1 {[%clk 0:07:09]}  c5 {[%clk 0:25:42]}
34. Ra8 {[%clk 0:04:40]}  Qc7 {[%clk 0:17:47]} 35. Kh2 {[%clk 0:03:36]}  cxd4 {[%clk 0:15:15]} 36. Rc1 {[%clk 0:03:40]}  Qe5 {[%clk 0:14:44]}
37. Rcc8 {[%clk 0:03:22]}  Be2 {[%clk 0:13:38]} 38. Qc6 {[%clk 0:00:42]}  Qf5 {[%clk 0:11:32]} 39. Kg1 {[%clk 0:00:42]}  Bb5 {[%clk 0:08:22]}
40. Rg8+ {[%clk 0:00:47]}  Kh7 {[%clk 0:08:50]} 41. Qc8 {[%clk 0:28:00]}  Be5 {[%clk 0:33:03]} 42. Rh8+ {[%clk 0:24:03]}  Kg7 {[%clk 0:33:19]}
43. Rh7+ {[%clk 0:23:47]}  Kf6 {[%clk 0:33:05]} 44. Qh8+ {[%clk 0:24:09]}  Ke7 {[%clk 0:33:33]} 45. Ba3+ {[%clk 0:24:32]} 1-0